bitfinex/quotes_SOLUSD_20250829
["timestamp","ask_amount","ask_price","bid_price","bid_amount"]
[1756507392551,10.29312328,203.35,203.34,0.03]
[1756507396077,5.37549358,203.35,203.34,0.03]
[1756507396263,10.29312328,203.35,203.34,0.03]
[1756507397282,5.5876297,203.35,203.34,0.03]
[1756507397470,10.29312328,203.35,203.34,0.03]
[1756507398873,23.88871729,203.35,203.34,0.03]
[1756507400992,25.86056929,203.35,203.34,0.03]
[1756507404195,64.38056929,203.35,203.34,0.03]
[1756507408678,39.59559401,203.33,203.32,0.1]
[1756507408991,86.47074481,203.33,203.32,0.1]
[1756507409175,87.14074481,203.33,203.32,0.1]
[1756507409377,89.11288881,203.33,203.32,0.1]
[1756507409893,90.381345,203.33,203.32,0.1]
[1756507411595,9.62360699,203.33,203.32,0.79]
[1756507412100,4.70549358,203.33,203.32,0.79]
[1756507413494,38.52,203.36,203.32,0.79]
[1756507413495,4.70549358,203.34,203.32,0.79]
[1756507415088,4.70549358,203.36,203.32,0.79]
[1756507415291,4.91688857,203.39,203.32,0.79]
[1756507415488,4.70549358,203.36,203.32,0.79]
[1756507415703,30.70549358,203.36,203.32,0.79]
[1756507415902,0.06,203.34,203.32,0.79]
[1756507417787,0.06,203.34,203.33,0.69]
[1756507426411,0.06,203.34,203.32,0.1]
[1756507426592,9.06128396,203.33,203.32,0.1]
[1756507427692,13.97939737,203.33,203.32,0.1]
[1756507428289,9.27390379,203.33,203.32,0.1]
[1756507428501,13.97939737,203.33,203.32,0.1]
[1756507430197,17.64558545,203.33,203.32,0.1]
[1756507431700,13.97939737,203.33,203.32,0.1]
[1756507431905,17.64550833,203.33,203.32,0.1]
[1756507434818,43.64550833,203.33,203.32,0.1]
[1756507435404,43.64401451,203.33,203.32,0.1]
[1756507435903,43.64401409,203.33,203.32,0.1]
[1756507436221,82.12401409,203.33,203.32,0.1]
[1756507437307,82.12401409,203.33,203.24,8.50574334]
[1756507437608,4.70549358,203.29,203.25,4.70549358]
[1756507438003,4.70549358,203.29,203.24,8.50574334]
[1756507439317,4.70549358,203.29,203.25,0.69]
[1756507442701,4.70549358,203.29,203.26,0.68]
[1756507443304,4.70549358,203.29,203.24,3.80024976]
[1756507443511,4.70549358,203.29,203.25,0.68]
[1756507443823,4.70549358,203.29,203.24,8.50574334]
[1756507443824,4.70549358,203.29,203.26,0.68]
[1756507444810,5.37549358,203.29,203.26,0.68]
[1756507445010,5.37549358,203.29,203.25,0.68]
[1756507445930,4.70549358,203.29,203.26,0.68]
[1756507446111,4.70549358,203.29,203.25,4.91998921]
[1756507446302,5.37549358,203.29,203.25,5.59998921]
[1756507447708,0.67,203.28,203.24,5.60025228]
[1756507448011,0.67,203.27,203.24,4.92025228]
[1756507448213,0.67,203.27,203.22,5.60057325]
[1756507448418,0.67,203.27,203.23,5.38549358]
[1756507448833,5.37549358,203.28,203.24,0.68]
[1756507449332,0.67,203.28,203.24,5.60024545]
[1756507449533,3.01588766,203.28,203.25,0.68]
[1756507451423,3.01588766,203.29,203.25,4.92002335]
[1756507451620,3.07588766,203.29,203.26,0.68]
[1756507452228,3.74588766,203.29,203.25,4.92002335]
[1756507452419,3.74588766,203.29,203.25,5.60002335]
[1756507453738,0.67,203.28,203.24,0.03]
[1756507454029,0.67,203.28,203.24,3.72588766]
[1756507455939,3.07588766,203.29,203.25,5.6000492]
[1756507456124,3.74588766,203.29,203.25,5.6000492]
[1756507456636,0.67,203.28,203.25,4.9200492]
[1756507456832,0.67,203.28,203.25,5.6000492]
[1756507457817,0.67,203.28,203.25,4.9200492]
[1756507458543,3.07588766,203.29,203.25,4.9200492]
[1756507458715,3.74588766,203.29,203.25,5.6000492]
[1756507458915,0.67,203.28,203.25,4.9200492]
[1756507459432,0.67,203.28,203.25,7.93593686]
[1756507459625,0.67,203.28,203.25,3.01588766]
[1756507460040,0.67,203.28,203.24,5.63023744]
[1756507460225,0.67,203.28,203.25,3.01588766]
[1756507461736,0.06,203.29,203.27,3.01588766]
[1756507461921,0.06,203.29,203.27,3.69588766]
[1756507462239,3.68588766,203.28,203.24,4.948601]
[1756507462420,3.68588766,203.27,203.24,0.03]
[1756507462740,3.68588766,203.26,203.24,0.03]
[1756507464542,0.67,203.26,203.24,0.03]
[1756507465028,0.67,203.25,203.24,0.03]
[1756507465430,0.67,203.26,203.24,0.03]
[1756507469138,3.68588766,203.26,203.24,0.03]
[1756507469321,5.38323217,203.26,203.24,0.03]
[1756507469916,0.67,203.26,203.24,0.03]
[1756507472242,4.71323217,203.27,203.24,0.03]
[1756507472444,0.65,203.27,203.24,0.03]
[1756507472637,0.65,203.26,203.24,0.03]
[1756507473238,0.71,203.28,203.24,4.74323217]
[1756507473440,0.71,203.28,203.24,5.42323217]
[1756507473630,0.65,203.27,203.24,0.03]
[1756507473852,0.71,203.28,203.24,0.03]
[1756507474040,0.65,203.27,203.24,0.03]
[1756507474439,0.65,203.27,203.24,4.95029128]
[1756507474628,0.06,203.28,203.24,5.63029128]
[1756507475038,0.71,203.28,203.24,5.63029128]
[1756507475224,0.06,203.28,203.24,4.95029128]
[1756507475426,0.65,203.27,203.24,4.95029128]
[1756507476950,0.65,203.26,203.24,0.03]
[1756507477956,5.36323217,203.25,203.24,0.03]
[1756507478443,9.02317249,203.25,203.24,0.03]
[1756507478841,13.94322169,203.25,203.24,0.03]
[1756507479036,17.6023966,203.25,203.24,0.03]
[1756507480149,4.30994032,203.25,203.24,0.03]
[1756507480337,13.94322169,203.25,203.24,0.03]
[1756507480531,4.30994032,203.25,203.24,0.03]
[1756507480735,9.02317249,203.25,203.24,0.03]
[1756507482138,5.36323217,203.25,203.24,0.03]
[1756507483357,9.01844291,203.25,203.24,0.03]
[1756507483534,5.36323217,203.25,203.24,0.03]
[1756507487069,10.28328137,203.25,203.24,0.03]
[1756507487941,26.65,203.25,203.24,0.03]
[1756507488279,36.28328137,203.25,203.24,0.03]
[1756507488441,39.9390792,203.25,203.24,0.03]
[1756507489166,36.28328137,203.25,203.24,0.03]
[1756507491468,34.58745139,203.25,203.24,0.03]
[1756507497170,31.5700492,203.25,203.24,0.03]
[1756507497558,34.58745139,203.25,203.24,0.03]
[1756507497964,31.5700492,203.25,203.24,0.03]
[1756507498169,34.58745139,203.25,203.24,0.03]
[1756507499345,55.49087544,203.25,203.24,0.03]
[1756507499550,60.88410744,203.25,203.24,0.03]
[1756507500953,39.35106204,203.25,203.24,0.03]
[1756507501153,76.62136641,203.25,203.24,0.03]
[1756507501387,73.60396422,203.25,203.24,0.03]
[1756507501675,80.27408139,203.25,203.24,0.03]
[1756507502462,93.8696754,203.25,203.24,0.03]
[1756507502867,95.8425974,203.25,203.24,0.03]
[1756507503582,95.84112313,203.25,203.24,0.03]
[1756507503973,95.84092412,203.25,203.24,0.03]
[1756507507468,95.84253336,203.25,203.24,0.03]
[1756507508078,95.90253336,203.25,203.24,0.03]
[1756507511306,92.88513117,203.25,203.24,0.03]
[1756507511509,95.90253336,203.25,203.24,0.03]
[1756507514384,10.38396815,203.25,203.24,0.03]
[1756507514709,48.76396815,203.25,203.24,0.03]
[1756507515491,48.76396815,203.25,203.24,0.74]
[1756507515689,7.36656596,203.25,203.24,0.74]
[1756507516005,0.06,203.25,203.24,0.74]
[1756507516905,0.06,203.25,203.24,3.75740219]
[1756507517484,0.06,203.25,203.24,8.67769347]
[1756507517685,0.06,203.25,203.24,13.69753047]
[1756507517903,0.06,203.25,203.24,10.68012828]
[1756507518095,0.06,203.25,203.24,13.69753047]
[1756507518304,0.06,203.25,203.24,10.68012828]
[1756507518520,0.06,203.25,203.24,13.69753047]
[1756507521809,0.06,203.25,203.24,14.18955959]
[1756507522693,1e-08,203.26,203.25,13.59559401]
[1756507522896,1e-08,203.26,203.25,17.3229962]
[1756507523411,1e-08,203.26,203.25,25.90532096]
[1756507523711,0.06,203.29,203.28,39.59559401]
[1756507523920,0.06,203.31,203.3,4.70831175]
[1756507524418,0.06,203.31,203.3,7.38938675]
[1756507525218,0.06,203.31,203.3,17.01653765]
[1756507527302,0.06,203.34,203.31,4.70831175]
[1756507527498,0.06,203.34,203.31,19.01390576]
[1756507527697,0.06,203.34,203.31,14.30559401]
[1756507527893,0.06,203.34,203.31,20.98468876]
[1756507528103,0.06,203.34,203.33,18.30390576]
[1756507528402,1e-08,203.34,203.33,18.30390576]
[1756507528611,1e-08,203.34,203.33,20.98449476]
[1756507529003,1e-08,203.34,203.33,59.32449476]
[1756507529519,1e-08,203.34,203.33,64.22260817]
[1756507530038,1e-08,203.34,203.33,21.19429642]
[1756507530223,1e-08,203.34,203.33,50.62701416]
[1756507533419,1e-08,203.34,203.33,64.22260817]
[1756507535525,1e-08,203.37,203.36,39.59559401]
[1756507535832,1e-08,203.37,203.36,43.00831175]
[1756507536212,1e-08,203.37,203.36,44.97899775]
[1756507536917,1e-08,203.37,203.36,59.22459176]
[1756507537614,1e-08,203.37,203.36,64.14197964]
[1756507538816,1e-08,203.37,203.36,11.59638563]
[1756507539012,0.69000001,203.37,203.36,11.59638563]
[1756507539218,1e-08,203.37,203.36,11.59638563]
[1756507539442,1e-08,203.37,203.36,49.89638563]
[1756507540338,0.69000001,203.37,203.36,6.88807388]
[1756507540506,0.69000001,203.37,203.36,1.970686]
[1756507540711,5.39831176,203.37,203.32,43.00831175]
[1756507541014,0.69,203.36,203.32,43.00831175]
[1756507541223,0.69,203.35,203.33,4.70831175]
[1756507541429,0.69,203.34,203.33,4.70831175]
[1756507542110,1e-08,203.37,203.33,9.62642516]
[1756507542329,0.69,203.36,203.35,4.70831175]
[1756507542632,0.69,203.36,203.35,43.00831175]
[1756507543132,0.69,203.36,203.35,38.3]
[1756507545632,0.69,203.36,203.35,43.2176297]
[1756507546028,1e-08,203.37,203.35,43.2176297]
[1756507546231,1e-08,203.37,203.36,4.70831175]
[1756507546741,1e-08,203.37,203.36,9.41662375]
[1756507548335,1e-08,203.37,203.36,28.57960564]
[1756507551624,1e-08,203.37,203.36,29.07134442]
[1756507555558,1e-08,203.39,203.36,29.07134442]
[1756507555741,1e-08,203.39,203.38,44.30390576]
[1756507555936,1e-08,203.39,203.38,44.79559619]
[1756507556245,1e-08,203.39,203.38,45.44559619]
[1756507556538,1e-08,203.39,203.38,47.41570019]
[1756507557934,1e-08,203.39,203.38,52.3326045]
[1756507558438,1e-08,203.39,203.38,57.04091625]
[1756507559134,1e-08,203.39,203.38,95.30091625]
[1756507559356,1e-08,203.39,203.38,94.80922582]
[1756507559732,0.69000001,203.39,203.38,75.85532006]
[1756507560437,0.69000001,203.39,203.38,71.14700831]
[1756507560743,0.69000001,203.39,203.38,75.85532006]
[1756507562365,0.69000001,203.39,203.38,49.85532006]
[1756507562737,0.69000001,203.39,203.38,11.59532006]
[1756507562938,0.69000001,203.39,203.38,44.93841575]
[1756507563443,0.69000001,203.39,203.38,6.67841575]
[1756507563748,0.69000001,203.39,203.37,38.26]
[1756507563934,0.65,203.38,203.37,38.26]
[1756507564934,0.65,203.38,203.35,9.65576872]
[1756507565269,0.65,203.37,203.36,38.26]
[1756507565456,0.65,203.37,203.35,38.29]
[1756507565767,0.65,203.36,203.35,38.29]
[1756507566456,0.65,203.36,203.35,43.20762555]
[1756507567049,0.65,203.38,203.35,43.20762555]
[1756507567236,0.65,203.37,203.35,43.20762555]
[1756507567441,0.65,203.37,203.35,47.91593755]
[1756507567959,0.65000001,203.39,203.35,52.6242493]
[1756507568136,1e-08,203.39,203.35,52.6242493]
[1756507568462,0.65,203.38,203.35,52.6242493]
[1756507568837,0.65,203.38,203.35,47.9159373]
[1756507569035,0.65,203.38,203.37,4.91714608]
[1756507569235,1e-08,203.39,203.37,43.17714608]
[1756507569652,0.65000001,203.39,203.37,43.17714608]
[1756507569853,1e-08,203.39,203.38,4.70831175]
[1756507571154,1e-08,203.39,203.38,9.62521606]
[1756507571360,1e-08,203.39,203.38,23.91081007]
[1756507572354,0.06,203.44,203.42,39.59559401]
[1756507572544,0.06,203.44,203.43,42.94831175]
[1756507572948,0.06,203.44,203.43,44.91812475]
[1756507573135,0.06,203.44,203.43,49.83382056]
[1756507575440,0.06,203.44,203.43,45.12550881]
[1756507575648,0.06,203.44,203.43,49.83382056]
[1756507575935,0.06,203.44,203.43,45.12550881]
[1756507576139,0.06,203.44,203.43,49.83382056]
[1756507577343,0.06,203.44,203.43,64.11941457]
[1756507577545,0.06,203.44,203.43,63.42941457]
[1756507578535,0.06,203.44,203.43,25.18941457]
[1756507578751,0.71,203.44,203.43,1.969813]
[1756507579051,0.71,203.44,203.43,40.209813]
[1756507579445,0.71,203.44,203.43,45.12550881]
[1756507582657,0.06,203.44,203.43,49.83382056]
[1756507585146,0.71,203.44,203.43,49.81382056]
[1756507586360,0.71,203.44,203.43,45.10550881]
[1756507586767,0.71,203.44,203.43,49.81382056]
[1756507587463,0.71,203.44,203.43,45.10550881]
[1756507587774,0.71,203.44,203.43,40.189813]
[1756507589055,0.71,203.44,203.43,1.969813]
[1756507589278,0.71,203.44,203.43,40.189813]
[1756507589979,5.41831175,203.44,203.38,0.03]
[1756507590155,4.70831175,203.42,203.39,38.22]
[1756507590360,0.65,203.41,203.39,43.128312]
[1756507590656,0.65,203.4,203.39,38.22]
[1756507591274,0.65,203.4,203.38,0.03]
[1756507591468,4.70831175,203.41,203.38,4.738312]
[1756507591666,4.70831175,203.41,203.39,38.22]
[1756507591975,0.67,203.4,203.39,38.22]
[1756507593149,5.37831175,203.4,203.39,38.22]
[1756507594878,5.37831175,203.4,203.38,38.25]
[1756507595188,0.67,203.39,203.38,38.25]
[1756507595472,5.37831175,203.39,203.38,38.25]
[1756507596555,5.37831175,203.39,203.38,0.03]
[1756507603052,10.29497431,203.39,203.38,0.03]
[1756507606688,23.89056832,203.39,203.38,0.03]
[1756507606889,26.0,203.37,203.36,0.03]
[1756507607058,30.70831175,203.37,203.36,0.03]
[1756507607263,31.37831175,203.37,203.36,0.03]
[1756507607798,31.37831175,203.37,203.33,0.03]
[1756507607799,26.0,203.34,203.33,0.03]
[1756507607971,30.70831175,203.34,203.33,0.03]
[1756507608159,31.37831175,203.34,203.33,0.03]
[1756507608864,36.29618329,203.34,203.33,0.03]
[1756507609079,13.59559401,203.33,203.32,0.03]
[1756507609288,23.01221751,203.33,203.32,0.03]
[1756507609468,18.97390576,203.33,203.32,0.03]
[1756507610387,57.19390576,203.33,203.32,0.03]
[1756507610692,62.11201917,203.33,203.32,0.03]
[1756507614273,64.08416317,203.33,203.32,0.03]
[1756507614475,39.59559401,203.31,203.3,0.03]
[1756507614782,49.01221751,203.31,203.3,0.03]
[1756507614982,49.68221751,203.31,203.3,0.03]
[1756507615392,54.60081472,203.31,203.3,0.03]
[1756507618073,23.01221751,203.3,203.29,0.03]
[1756507618275,61.23221751,203.3,203.29,0.03]
[1756507618494,61.90221751,203.3,203.29,0.03]
[1756507619286,66.82105666,203.3,203.29,0.03]
[1756507620301,5.58883915,203.3,203.29,0.03]
[1756507620490,42.92831175,203.3,203.29,0.03]
[1756507620690,48.3066235,203.3,203.29,0.03]
[1756507621404,53.22546265,203.3,203.29,0.03]
[1756507623220,52.55546265,203.3,203.29,0.03]
[1756507623527,53.25546265,203.3,203.29,0.03]
[1756507626924,43.83883915,203.3,203.29,0.03]
[1756507627102,53.25546265,203.3,203.29,0.03]
[1756507633932,53.31546265,203.3,203.29,0.03]
[1756507636035,0.06,203.3,203.29,0.68]
[1756507637041,4.76831175,203.3,203.29,0.68]
[1756507637430,4.76831175,203.3,203.29,5.418312]
[1756507639230,4.76831175,203.3,203.29,4.768312]
[1756507639425,4.76831175,203.3,203.29,0.03]
[1756507640129,10.1766235,203.3,203.29,0.03]
[1756507640722,15.09546265,203.3,203.29,0.03]
[1756507645642,53.29546265,203.3,203.29,0.03]
[1756507646347,48.5871509,203.3,203.29,0.03]
[1756507648241,66.89105666,203.3,203.29,0.03]
[1756507648747,13.59559401,203.29,203.27,0.03]
[1756507648939,42.90831175,203.28,203.27,0.03]
[1756507649136,43.60831175,203.28,203.27,0.03]
[1756507649748,45.58103875,203.28,203.27,0.03]
[1756507650057,50.50036185,203.28,203.27,0.03]
[1756507650352,50.50036185,203.28,203.26,0.03]
[1756507650353,64.09595586,203.28,203.26,0.03]
[1756507650556,4.70831175,203.27,203.26,0.03]
[1756507650943,5.38831175,203.27,203.26,0.03]
[1756507651658,7.36113575,203.27,203.26,0.03]
[1756507652035,12.28070086,203.27,203.26,0.03]
[1756507658564,25.87629487,203.27,203.26,0.03]
[1756507662455,39.59559401,203.25,203.24,0.03]
[1756507662658,77.79559401,203.25,203.24,0.03]
[1756507662858,13.59559401,203.24,203.23,0.03]
[1756507663039,18.30390576,203.24,203.23,0.03]
[1756507663454,18.98390576,203.24,203.23,0.03]
[1756507664135,23.90419704,203.24,203.23,0.03]
[1756507669568,23.90419704,203.24,203.21,0.03]
[1756507669569,44.30390576,203.22,203.21,0.03]
[1756507669738,82.50390576,203.22,203.21,0.03]
[1756507669943,83.18390576,203.22,203.21,0.03]
[1756507671243,88.10468127,203.22,203.21,0.03]
[1756507671859,92.81299302,203.22,203.21,1e-08]
[1756507672166,145.19559401,203.21,203.19,1e-08]
[1756507672463,73.6166235,203.2,203.19,1e-08]
[1756507672661,48.2966235,203.2,203.19,1e-08]
[1756507673344,53.21788334,203.2,203.19,1e-08]
[1756507674276,13.59559401,203.15,203.12,0.66]
[1756507674452,4.70831175,203.13,203.12,0.66]
[1756507674765,4.70831175,203.13,203.08,95.21900713]
[1756507674942,4.70831175,203.11,203.09,0.66]
[1756507675548,4.70831175,203.12,203.09,0.66]
[1756507675754,38.2,203.14,203.09,0.66]
[1756507675755,68.90831175,203.16,203.1,4.70831175]
[1756507676054,30.70831175,203.16,203.11,0.66]
[1756507676448,4.70831175,203.15,203.11,0.66]
[1756507678275,4.70831175,203.13,203.12,0.66]
[1756507678456,4.70831175,203.13,203.1,0.66]
[1756507678661,4.70831175,203.11,203.1,0.66]
[1756507678864,4.70831175,203.11,203.08,95.21900713]
[1756507679085,4.70831175,203.1,203.08,0.66]
[1756507679768,4.70831175,203.1,203.09,0.66]
[1756507681478,4.70831175,203.11,203.09,0.66]
[1756507681682,4.70831175,203.11,203.1,0.71]
[1756507682481,4.70831175,203.11,203.06,9.6329632]
[1756507682670,4.70831175,203.08,203.04,0.71]
[1756507682866,4.70831175,203.05,202.99,9.6346628]
[1756507683067,4.70831175,203.06,203.04,0.71]
[1756507684679,4.70831175,203.05,203.04,0.71]
[1756507685492,4.70831175,203.05,203.0,14.5585719]
[1756507685788,4.70831175,203.05,203.01,0.71]
[1756507686493,4.70831175,203.05,203.02,0.71]
[1756507686878,4.70831175,203.05,202.99,4.92613706]
[1756507687069,4.70831175,203.05,203.0,0.71]
[1756507687070,4.70831175,203.04,203.0,0.71]
[1756507687269,4.70831175,203.04,203.01,0.71]
[1756507687975,9.63397326,203.02,202.98,0.1]
[1756507688176,4.70831175,202.99,202.98,0.1]
[1756507696496,5.37831175,202.99,202.98,0.1]
[1756507701685,10.3046628,202.99,202.98,0.1]
[1756507703066,49.90025681,202.99,202.98,0.1]
[1756507704464,45.19194506,202.99,202.98,0.1]
[1756507704679,49.90025681,202.99,202.98,0.1]
[1756507705590,26.0,202.99,202.98,0.1]
[1756507705796,30.70831175,202.99,202.98,0.1]
[1756507708368,35.6346628,202.99,202.98,0.1]
[1756507708677,36.3046628,202.99,202.98,0.1]
[1756507709188,30.70831175,202.99,202.98,0.1]
[1756507709373,31.37831175,202.99,202.98,0.1]
[1756507709576,36.3046628,202.99,202.98,0.1]
[1756507713793,31.37831175,202.99,202.98,0.1]
[1756507715991,36.3046628,202.99,202.98,0.1]
[1756507716612,31.37831175,202.99,202.98,0.1]
[1756507718190,36.3046628,202.99,202.98,0.1]
[1756507721314,31.37831175,202.99,202.98,0.1]
[1756507722109,36.3046628,202.99,202.98,0.1]
[1756507722488,26.67,202.99,202.98,0.1]
[1756507722713,26.0,202.99,202.98,0.1]
[1756507722888,4.70831175,202.99,202.98,0.1]
[1756507723088,4.70831175,203.03,202.98,0.81]
[1756507723522,26.0,203.02,202.99,0.71]
[1756507724792,31.38831175,203.02,202.98,0.1]
[1756507724996,31.38831175,203.02,202.98,0.81]
[1756507725712,4.70831175,202.99,202.98,0.1]
[1756507726095,5.38831175,202.99,202.98,0.1]
[1756507727015,64.88,203.02,202.98,0.1]
[1756507727196,4.70831175,203.01,202.98,0.1]
[1756507727711,5.38831175,203.01,202.98,0.1]
[1756507727912,4.70831175,203.0,202.98,0.1]
[1756507728601,5.38831175,203.0,202.98,0.1]
[1756507728797,4.70831175,203.0,202.98,0.1]
[1756507729011,4.70831175,203.01,202.98,0.1]
[1756507729704,5.38831175,203.01,202.98,0.1]
[1756507729899,4.70831175,203.0,202.98,0.1]
[1756507730124,4.70831175,203.01,202.98,0.1]
[1756507730293,0.68,203.01,202.98,0.1]
[1756507730707,5.38831175,203.01,202.98,0.1]
[1756507732498,43.58831175,203.02,202.98,0.1]
[1756507733203,0.68,203.01,202.98,0.1]
[1756507734813,26.0,203.01,202.98,0.81]
[1756507735012,26.68,203.01,202.98,0.1]
[1756507738731,0.68,203.05,202.99,0.71]
[1756507738909,5.38831175,203.04,202.99,5.41831175]
[1756507739223,0.68,203.03,202.99,5.41831175]
[1756507739419,0.68,203.03,202.99,10.34454478]
[1756507740923,26.72,203.05,203.01,4.70831175]
[1756507741229,4.70831175,203.07,203.02,4.70831175]
[1756507741436,4.70831175,203.03,202.99,4.926233]
[1756507741744,0.72,203.02,202.98,4.80831175]
[1756507742625,38.18,203.06,203.01,4.70831175]
[1756507742626,38.9,203.06,203.01,4.70831175]
[1756507742921,38.9,203.06,203.02,5.36831175]
[1756507743226,38.9,203.06,203.01,9.63407047]
[1756507743422,0.72,203.05,203.01,10.29407047]
[1756507743606,0.72,203.05,203.02,4.70831175]
[1756507743927,38.18,203.06,203.03,4.70831175]
[1756507743928,26.0,203.06,203.03,4.70831175]
[1756507744329,0.72,203.07,203.04,4.70831175]
[1756507744629,0.72,203.06,203.03,4.70831175]
[1756507744802,0.72,203.06,203.03,9.63367905]
[1756507745001,0.72,203.06,203.02,4.92559253]
[1756507745222,0.72,203.05,203.01,10.29454475]
[1756507745409,0.72,203.05,203.01,4.70831175]
[1756507745620,4.70831175,203.06,203.01,5.36831175]
[1756507745932,0.72,203.05,203.02,4.70831175]
[1756507746141,5.42831175,203.07,203.02,4.70831175]
[1756507746436,0.72,203.06,203.02,4.70831175]
[1756507746612,0.72,203.06,203.02,5.36831175]
[1756507746808,4.70831175,203.03,203.0,10.294545]
[1756507747026,5.42831175,203.02,202.98,0.1]
[1756507747632,4.70831175,203.01,202.98,0.1]
[1756507748137,5.42831175,203.01,202.98,0.1]
[1756507748501,4.70831175,203.01,202.98,0.1]
[1756507748721,0.72,203.0,202.98,0.1]
[1756507749115,0.72,202.99,202.98,0.1]
[1756507749315,5.42831175,202.99,202.98,0.1]
[1756507758821,10.3546628,202.99,202.98,0.1]
[1756507763941,4.1222513,203.03,202.98,0.1]
[1756507764249,4.70831175,203.0,202.98,0.1]
[1756507764749,4.70831175,202.99,202.98,0.1]
[1756507766065,57.20390576,202.99,202.98,0.1]
[1756507767454,62.13025681,202.99,202.98,0.1]
[1756507770338,57.42194506,202.99,202.98,0.1]
[1756507770543,62.13025681,202.99,202.98,0.1]
[1756507771653,57.42194506,202.99,202.98,0.1]
[1756507771827,48.5346628,202.99,202.98,0.1]
[1756507772662,73.8146628,202.99,202.98,0.1]
[1756507772952,68.88831175,202.99,202.98,0.1]
[1756507773654,30.70831175,202.99,202.98,0.1]
[1756507774755,30.92635105,202.99,202.98,0.1]
[1756507775060,35.6346628,202.99,202.98,0.1]
[1756507775469,30.70831175,202.99,202.98,0.1]
[1756507779648,132.3,203.04,202.98,0.82]
[1756507779955,4.70831175,203.0,202.98,0.1]
[1756507780541,4.70831175,203.01,202.98,0.1]
[1756507782027,4.70831175,203.02,202.98,5.74659344]
[1756507782236,4.70831175,203.02,202.99,0.72]
[1756507783939,4.70831175,203.0,202.98,0.1]
[1756507784144,26.0,203.02,202.99,0.72]
[1756507784334,26.7,203.02,202.98,0.1]
[1756507784534,31.40831175,203.02,202.98,0.1]
[1756507785157,5.40831175,203.02,202.98,0.1]
[1756507785359,9.63394721,203.02,202.98,0.1]
[1756507785560,10.33394721,203.02,202.98,0.1]
[1756507786354,4.70831175,203.0,202.98,0.1]
[1756507786542,4.70831175,202.99,202.98,0.1]
[1756507786862,5.40831175,202.99,202.98,0.1]
[1756507789207,10.3346628,202.99,202.98,0.1]
[1756507789358,5.62635105,202.99,202.98,0.1]
[1756507789545,23.93025681,202.99,202.98,0.1]
[1756507793562,10.3346628,202.99,202.98,0.1]
[1756507793763,42.88831175,202.99,202.98,0.1]
[1756507795068,43.58831175,202.99,202.98,0.1]
[1756507795659,5.40831175,202.99,202.98,0.1]
[1756507795859,4.70831175,202.99,202.98,0.1]
[1756507799275,10.3346628,202.99,202.98,0.1]
[1756507799472,48.5146628,202.99,202.98,0.1]
[1756507804278,62.11025681,202.99,202.98,0.1]
[1756507804670,57.40194506,202.99,202.98,0.1]
[1756507804979,62.11025681,202.99,202.98,0.1]
[1756507805555,65.77565196,202.99,202.98,0.1]
[1756507806279,65.7755442,202.99,202.98,0.1]
[1756507809888,65.77675562,202.99,202.98,0.1]
[1756507810558,69.89900692,202.99,202.98,0.1]
[1756507812266,95.19900692,202.99,202.98,0.1]
[1756507812474,91.07675562,202.99,202.98,0.1]
[1756507814206,72.77284986,202.99,202.98,0.1]
[1756507814369,78.17116161,202.99,202.98,0.1]
[1756507814763,91.76675562,202.99,202.98,0.1]
[1756507815180,65.76675562,202.99,202.98,0.1]
[1756507815376,69.88900692,202.99,202.98,0.1]
[1756507816797,12.71510116,202.99,202.98,0.1]
[1756507817101,77.48116161,202.99,202.98,0.1]
[1756507817474,72.55481056,202.99,202.98,0.1]